[Event "Titled Tuesday Blitz March 01 Early 2022"]
[White "Melian, Juan Sebastian"]
[Black "Marzaduri, Riccardo"]
[WhiteFideId "3706575"]
[BlackFideId "886084"]
[WhiteElo "1842"]
[BlackElo "2200"]
[Result "0-1"]
[Round "04"]
[TimeControl "180+1"]
[Date "2022.03.01"]
[WhiteClock "0:00:10"]
[BlackClock "0:00:03"]

1. e4 {[%clk 0:03:00]}  e6 {[%clk 0:02:59]} 2. d4 {[%clk 0:03:00]}  d5 {[%clk 0:02:59]} 3. Bd3 {[%clk 0:03:01]}  dxe4 {[%clk 0:02:58]} 4. Bxe4 {[%clk 0:03:02]}  Nf6 {[%clk 0:02:59]} 5. Bf3 {[%clk 0:03:02]}  c5 {[%clk 0:02:58]} 6. Ne2 {[%clk 0:03:03]}  Nc6 {[%clk 0:02:59]} 7. Be3 {[%clk 0:03:01]}  e5 {[%clk 0:02:59]} 8. Bxc6+ {[%clk 0:02:58]}  bxc6 {[%clk 0:03:00]} 9. dxe5 {[%clk 0:02:58]}  Qxd1+ {[%clk 0:03:01]} 10. Kxd1 {[%clk 0:02:59]}  Ng4 {[%clk 0:03:01]} 11. Nd2 {[%clk 0:02:55]}  Ba6 {[%clk 0:02:56]} 12. c4 {[%clk 0:02:49]}  Nxe5 {[%clk 0:02:48]} 13. b3 {[%clk 0:02:45]}  Ng4 {[%clk 0:02:40]} 14. Kc2 {[%clk 0:02:44]}  Bc8 {[%clk 0:02:34]} 15. Ng3 {[%clk 0:02:27]}  Nxe3+ {[%clk 0:02:31]} 16. fxe3 {[%clk 0:02:26]}  Be6 {[%clk 0:02:07]} 17. Rad1 {[%clk 0:02:11]}  O-O-O {[%clk 0:02:06]} 18. Nde4 {[%clk 0:02:10]}  Be7 {[%clk 0:02:03]} 19. Rhf1 {[%clk 0:02:01]}  Rxd1 {[%clk 0:02:01]} 20. Kxd1 {[%clk 0:02:00]}  h5 {[%clk 0:01:47]} 21. Nf5 {[%clk 0:01:59]}  Rd8+ {[%clk 0:01:24]} 22. Kc2 {[%clk 0:01:56]}  Bf8 {[%clk 0:01:24]} 23. Ng5 {[%clk 0:01:50]}  Re8 {[%clk 0:01:06]} 24. Nxe6 {[%clk 0:01:39]}  Rxe6 {[%clk 0:01:07]} 25. Rf3 {[%clk 0:01:39]}  g6 {[%clk 0:01:04]} 26. Ng3 {[%clk 0:01:38]}  f5 {[%clk 0:01:04]} 27. Ne2 {[%clk 0:01:36]}  Bh6 {[%clk 0:01:02]} 28. Kd3 {[%clk 0:01:36]}  Rd6+ {[%clk 0:01:00]} 29. Kc2 {[%clk 0:01:36]}  Re6 {[%clk 0:01:00]} 30. Kd2 {[%clk 0:01:36]}  Rd6+ {[%clk 0:00:59]} 31. Ke1 {[%clk 0:01:32]}  Rd3 {[%clk 0:00:51]} 32. Rg3 {[%clk 0:01:29]}  Bxe3 {[%clk 0:00:39]} 33. Rxg6 {[%clk 0:01:28]}  Kc7 {[%clk 0:00:36]} 34. Rf6 {[%clk 0:01:01]}  Rd2 {[%clk 0:00:20]} 35. Rxf5 {[%clk 0:00:38]}  Rxa2 {[%clk 0:00:20]} 36. Ng3 {[%clk 0:00:36]}  h4 {[%clk 0:00:16]} 37. Rf7+ {[%clk 0:00:21]}  Kb6 {[%clk 0:00:16]} 38. Nf5 {[%clk 0:00:20]}  Bf2+ {[%clk 0:00:07]} 39. Kd1 {[%clk 0:00:20]}  Bd4 {[%clk 0:00:06]} 40. g4 {[%clk 0:00:20]}  Rxh2 {[%clk 0:00:05]} 41. Nd6 {[%clk 0:00:18]}  Ka5 {[%clk 0:00:02]} 42. Rb7 {[%clk 0:00:12]}  Ka6 {[%clk 0:00:01]} 43. Rh7 {[%clk 0:00:09]}  Ka5 {[%clk 0:00:02]} 44. Rb7 {[%clk 0:00:09]}  Ka6 {[%clk 0:00:02]} 45. Rb8 {[%clk 0:00:10]}  Rh1+ {[%clk 0:00:03]} 46. Kc2 {[%clk 0:00:10]}  Rh2+ {[%clk 0:00:03]} 0-1


[Site "https://www.chess.com"]

[Event "Titled Tuesday Blitz March 01 Early 2022"]
[White "Mikhalsky, Vladimir"]
[Black "Nazari, Arad"]
[WhiteFideId "14144352"]
[BlackFideId "12577324"]
[WhiteElo "2248"]
[BlackElo "2120"]
[Result "0-1"]
[Round "04"]
[TimeControl "180+1"]
[Date "2022.03.01"]
[WhiteClock "0:00:07"]
[BlackClock "0:01:01"]

1. c4 {[%clk 0:03:00]}  g6 {[%clk 0:02:57]} 2. d4 {[%clk 0:03:00]}  Bg7 {[%clk 0:02:58]} 3. e4 {[%clk 0:02:59]}  e5 {[%clk 0:02:51]} 4. d5 {[%clk 0:02:58]}  d6 {[%clk 0:02:50]} 5. Nc3 {[%clk 0:02:54]}  Ne7 {[%clk 0:02:49]} 6. g4 {[%clk 0:02:23]}  h5 {[%clk 0:02:43]} 7. g5 {[%clk 0:02:21]}  c5 {[%clk 0:02:39]} 8. Be3 {[%clk 0:02:12]}  Na6 {[%clk 0:02:40]} 9. Qd2 {[%clk 0:02:11]}  Nc7 {[%clk 0:02:39]} 10. h4 {[%clk 0:02:03]}  Bd7 {[%clk 0:02:39]} 11. Bh3 {[%clk 0:02:02]}  a6 {[%clk 0:02:39]} 12. Nge2 {[%clk 0:01:48]}  b5 {[%clk 0:02:38]} 13. b3 {[%clk 0:01:35]}  Bxh3 {[%clk 0:02:31]} 14. Rxh3 {[%clk 0:01:34]}  Qd7 {[%clk 0:02:31]} 15. Rg3 {[%clk 0:01:30]}  O-O {[%clk 0:02:29]} 16. Kf1 {[%clk 0:01:26]}  Rfb8 {[%clk 0:02:28]} 17. Kg2 {[%clk 0:01:08]}  bxc4 {[%clk 0:02:28]} 18. bxc4 {[%clk 0:01:08]}  Rb4 {[%clk 0:02:28]} 19. Qd3 {[%clk 0:01:06]}  Rab8 {[%clk 0:02:27]} 20. Rb1 {[%clk 0:01:06]}  Rxb1 {[%clk 0:02:18]} 21. Nxb1 {[%clk 0:01:05]}  Qa4 {[%clk 0:02:18]} 22. Nec3 {[%clk 0:01:04]}  Qb4 {[%clk 0:02:04]} 23. Bc1 {[%clk 0:01:00]}  Na8 {[%clk 0:01:55]} 24. Ba3 {[%clk 0:00:51]}  Qa5 {[%clk 0:01:55]} 25. Bc1 {[%clk 0:00:39]}  Nb6 {[%clk 0:01:46]} 26. Re3 {[%clk 0:00:36]}  Qb4 {[%clk 0:01:43]} 27. Na3 {[%clk 0:00:32]}  Na4 {[%clk 0:01:31]} 28. Nxa4 {[%clk 0:00:32]}  Qxa4 {[%clk 0:01:31]} 29. Qc2 {[%clk 0:00:30]}  Qxc2 {[%clk 0:01:27]} 30. Nxc2 {[%clk 0:00:30]}  Rb1 {[%clk 0:01:28]} 31. Re1 {[%clk 0:00:20]}  Nc8 {[%clk 0:01:25]} 32. Na3 {[%clk 0:00:18]}  Ra1 {[%clk 0:01:22]} 33. Kf1 {[%clk 0:00:15]}  Rxa2 {[%clk 0:01:20]} 34. Re2 {[%clk 0:00:15]}  Ra1 {[%clk 0:01:20]} 35. Rc2 {[%clk 0:00:15]}  f5 {[%clk 0:01:13]} 36. Ke2 {[%clk 0:00:13]}  fxe4 {[%clk 0:01:10]} 37. Ke3 {[%clk 0:00:13]}  Ne7 {[%clk 0:01:08]} 38. Kxe4 {[%clk 0:00:13]}  Nf5 {[%clk 0:01:09]} 39. Bb2 {[%clk 0:00:11]}  Rh1 {[%clk 0:01:07]} 40. Rc3 {[%clk 0:00:11]}  Rxh4+ {[%clk 0:01:07]} 41. Kf3 {[%clk 0:00:11]}  Nd4+ {[%clk 0:01:07]} 42. Kg2 {[%clk 0:00:11]}  Ne2 {[%clk 0:01:05]} 43. Rb3 {[%clk 0:00:10]}  Rg4+ {[%clk 0:01:03]} 44. Kf3 {[%clk 0:00:10]}  Ng1+ {[%clk 0:01:03]} 45. Ke3 {[%clk 0:00:09]}  Rxg5 {[%clk 0:01:02]} 46. Rb8+ {[%clk 0:00:08]}  Kh7 {[%clk 0:01:02]} 47. Rb7 {[%clk 0:00:08]}  Rf5 {[%clk 0:01:02]} 48. Nc2 {[%clk 0:00:07]}  h4 {[%clk 0:01:01]} 0-1


[Site "https://www.chess.com"]

[Event "Titled Tuesday Blitz March 01 Early 2022"]
[White "Mirzanurov, Bulat"]
[Black "Kukhmazov, Arsen"]
[WhiteFideId "4184521"]
[BlackFideId "24108260"]
[WhiteElo "2116"]
[BlackElo "2487"]
[Result "0-1"]
[Round "04"]
[TimeControl "180+1"]
[Date "2022.03.01"]
[WhiteClock "0:00:46"]
[BlackClock "0:01:53"]

1. e4 {[%clk 0:03:00]}  c6 {[%clk 0:02:59]} 2. d4 {[%clk 0:03:00]}  d5 {[%clk 0:03:00]} 3. exd5 {[%clk 0:03:00]}  cxd5 {[%clk 0:03:01]} 4. Bd3 {[%clk 0:03:00]}  Nc6 {[%clk 0:03:01]} 5. c3 {[%clk 0:03:00]}  Qc7 {[%clk 0:03:02]} 6. h3 {[%clk 0:02:59]}  Nf6 {[%clk 0:03:01]} 7. Nf3 {[%clk 0:02:59]}  g6 {[%clk 0:03:02]} 8. Qc2 {[%clk 0:02:58]}  Nh5 {[%clk 0:03:02]} 9. O-O {[%clk 0:02:57]}  Nf4 {[%clk 0:03:02]} 10. Bxf4 {[%clk 0:02:54]}  Qxf4 {[%clk 0:03:03]} 11. Nbd2 {[%clk 0:02:49]}  Bg7 {[%clk 0:03:03]} 12. Bb5 {[%clk 0:02:47]}  O-O {[%clk 0:03:03]} 13. Rfe1 {[%clk 0:02:44]}  Qd6 {[%clk 0:02:52]} 14. Nb3 {[%clk 0:02:37]}  Bf5 {[%clk 0:02:51]} 15. Qe2 {[%clk 0:02:33]}  Rae8 {[%clk 0:02:39]} 16. Bxc6 {[%clk 0:02:30]}  Qxc6 {[%clk 0:02:37]} 17. Ne5 {[%clk 0:02:26]}  Qd6 {[%clk 0:02:36]} 18. a4 {[%clk 0:02:17]}  f6 {[%clk 0:02:32]} 19. Nd3 {[%clk 0:02:07]}  e5 {[%clk 0:02:33]} 20. Qd2 {[%clk 0:02:02]}  e4 {[%clk 0:02:14]} 21. Ndc1 {[%clk 0:01:47]}  Bc8 {[%clk 0:02:03]} 22. a5 {[%clk 0:01:38]}  f5 {[%clk 0:02:03]} 23. Ne2 {[%clk 0:01:21]}  f4 {[%clk 0:02:03]} 24. a6 {[%clk 0:01:07]}  b6 {[%clk 0:02:03]} 25. Nec1 {[%clk 0:01:03]}  f3 {[%clk 0:02:03]} 26. Na2 {[%clk 0:00:51]}  fxg2 {[%clk 0:02:02]} 27. Kxg2 {[%clk 0:00:50]}  Rf3 {[%clk 0:02:01]} 28. Rh1 {[%clk 0:00:48]}  e3 {[%clk 0:01:54]} 29. fxe3 {[%clk 0:00:46]}  Qg3# {[%clk 0:01:53]} 0-1


[Site "https://www.chess.com"]

[Event "Titled Tuesday Blitz March 01 Early 2022"]
[White "Miszler, Levente"]
[Black "Bashirli, Saadat"]
[WhiteFideId "763276"]
[BlackFideId "13429990"]
[WhiteElo "1966"]
[BlackElo "1173"]
[Result "1-0"]
[Round "04"]
[TimeControl "180+1"]
[Date "2022.03.01"]
[WhiteClock "0:00:34"]
[BlackClock "0:00:04"]

1. Nf3 {[%clk 0:03:00]}  d5 {[%clk 0:02:51]} 2. g3 {[%clk 0:02:55]}  Nf6 {[%clk 0:02:50]} 3. Bg2 {[%clk 0:02:54]}  Bg4 {[%clk 0:02:48]} 4. O-O {[%clk 0:02:53]}  e6 {[%clk 0:02:47]} 5. h3 {[%clk 0:02:51]}  Bxf3 {[%clk 0:02:45]} 6. Bxf3 {[%clk 0:02:51]}  c5 {[%clk 0:02:45]} 7. d3 {[%clk 0:02:51]}  Nc6 {[%clk 0:02:45]} 8. Nd2 {[%clk 0:02:51]}  Bd6 {[%clk 0:02:44]} 9. e4 {[%clk 0:02:50]}  Nd4 {[%clk 0:02:38]} 10. Bg2 {[%clk 0:02:49]}  O-O {[%clk 0:02:33]} 11. c3 {[%clk 0:02:49]}  Nc6 {[%clk 0:02:32]} 12. f4 {[%clk 0:02:44]}  dxe4 {[%clk 0:02:30]} 13. dxe4 {[%clk 0:02:44]}  Bc7 {[%clk 0:02:27]} 14. Qc2 {[%clk 0:02:37]}  e5 {[%clk 0:02:23]} 15. f5 {[%clk 0:02:36]}  Qe7 {[%clk 0:02:19]} 16. Nf3 {[%clk 0:02:36]}  Bb6 {[%clk 0:02:11]} 17. Kh2 {[%clk 0:02:34]}  Rad8 {[%clk 0:02:09]} 18. Be3 {[%clk 0:02:27]}  g6 {[%clk 0:02:05]} 19. Nh4 {[%clk 0:02:21]}  Kg7 {[%clk 0:01:54]} 20. Qc1 {[%clk 0:02:15]}  Kg8 {[%clk 0:01:30]} 21. Bh6 {[%clk 0:02:07]}  Rfe8 {[%clk 0:01:30]} 22. Bg5 {[%clk 0:02:06]}  Rd6 {[%clk 0:01:22]} 23. Qe3 {[%clk 0:01:59]}  c4 {[%clk 0:01:10]} 24. Qf3 {[%clk 0:01:59]}  Rd3 {[%clk 0:00:56]} 25. Qe2 {[%clk 0:01:52]}  Rd6 {[%clk 0:00:37]} 26. Rad1 {[%clk 0:01:42]}  Red8 {[%clk 0:00:25]} 27. Rxd6 {[%clk 0:01:35]}  Rxd6 {[%clk 0:00:26]} 28. Qxc4 {[%clk 0:01:32]}  Kg7 {[%clk 0:00:22]} 29. fxg6 {[%clk 0:01:22]}  fxg6 {[%clk 0:00:20]} 30. Qe2 {[%clk 0:01:00]}  Qf7 {[%clk 0:00:16]} 31. Rf3 {[%clk 0:00:54]}  Bd8 {[%clk 0:00:14]} 32. Rd3 {[%clk 0:00:48]}  Rxd3 {[%clk 0:00:11]} 33. Qxd3 {[%clk 0:00:49]}  h6 {[%clk 0:00:11]} 34. Be3 {[%clk 0:00:40]}  Bc7 {[%clk 0:00:08]} 35. b3 {[%clk 0:00:37]}  Qe6 {[%clk 0:00:06]} 36. Nf3 {[%clk 0:00:35]}  Nh5 {[%clk 0:00:04]} 37. Qd2 {[%clk 0:00:34]} 1-0


[Site "https://www.chess.com"]

[Event "Titled Tuesday Blitz March 01 Early 2022"]
[White "Molina, Roberto Junio Brito"]
[Black "Kollars, Dmitrij"]
[WhiteFideId "2109450"]
[BlackFideId "12909572"]
[WhiteElo "2402"]
[BlackElo "2584"]
[Result "1-0"]
[Round "04"]
[TimeControl "180+1"]
[Date "2022.03.01"]
[WhiteClock "0:00:09"]
[BlackClock "0:00:02"]

1. d4 {[%clk 0:03:00]}  Nf6 {[%clk 0:02:59]} 2. Nf3 {[%clk 0:03:00]}  d5 {[%clk 0:02:59]} 3. e3 {[%clk 0:03:01]}  c5 {[%clk 0:02:58]} 4. dxc5 {[%clk 0:03:01]}  Nc6 {[%clk 0:02:53]} 5. Bb5 {[%clk 0:02:59]}  Bd7 {[%clk 0:02:46]} 6. O-O {[%clk 0:02:56]}  e6 {[%clk 0:02:40]} 7. Bxc6 {[%clk 0:02:54]}  Bxc6 {[%clk 0:02:39]} 8. b4 {[%clk 0:02:55]}  a5 {[%clk 0:02:15]} 9. c3 {[%clk 0:02:54]}  axb4 {[%clk 0:02:03]} 10. cxb4 {[%clk 0:02:54]}  b6 {[%clk 0:02:03]} 11. Nd4 {[%clk 0:02:40]}  Ba4 {[%clk 0:02:03]} 12. Qe2 {[%clk 0:02:33]}  bxc5 {[%clk 0:02:02]} 13. bxc5 {[%clk 0:02:33]}  Bxc5 {[%clk 0:02:03]} 14. Ba3 {[%clk 0:02:32]}  Bxa3 {[%clk 0:01:59]} 15. Nxa3 {[%clk 0:02:33]}  O-O {[%clk 0:01:59]} 16. Nab5 {[%clk 0:02:29]}  Qa5 {[%clk 0:01:49]} 17. Rfb1 {[%clk 0:02:26]}  Rfc8 {[%clk 0:01:46]} 18. Rb2 {[%clk 0:02:23]}  Ne4 {[%clk 0:01:38]} 19. h3 {[%clk 0:02:19]}  Rc5 {[%clk 0:01:13]} 20. Rab1 {[%clk 0:02:08]}  Rac8 {[%clk 0:01:13]} 21. Kh2 {[%clk 0:02:02]}  e5 {[%clk 0:01:06]} 22. Nf5 {[%clk 0:01:58]}  Qd8 {[%clk 0:00:47]} 23. Qg4 {[%clk 0:01:21]}  g6 {[%clk 0:00:47]} 24. Ng3 {[%clk 0:01:17]}  Bc2 {[%clk 0:00:36]} 25. Nxe4 {[%clk 0:01:13]}  Bxe4 {[%clk 0:00:37]} 26. Rd1 {[%clk 0:00:59]}  Qf6 {[%clk 0:00:31]} 27. Rdd2 {[%clk 0:00:54]}  h5 {[%clk 0:00:29]} 28. Qe2 {[%clk 0:00:46]}  h4 {[%clk 0:00:21]} 29. f3 {[%clk 0:00:44]}  Bf5 {[%clk 0:00:20]} 30. e4 {[%clk 0:00:37]}  dxe4 {[%clk 0:00:19]} 31. fxe4 {[%clk 0:00:38]}  Be6 {[%clk 0:00:17]} 32. Qf2 {[%clk 0:00:30]}  Qg5 {[%clk 0:00:18]} 33. Nd6 {[%clk 0:00:28]}  Ra8 {[%clk 0:00:16]} 34. Qxc5 {[%clk 0:00:26]}  Qg3+ {[%clk 0:00:13]} 35. Kh1 {[%clk 0:00:24]}  Ra3 {[%clk 0:00:10]} 36. Qf2 {[%clk 0:00:23]}  Qg5 {[%clk 0:00:07]} 37. Rb8+ {[%clk 0:00:18]}  Kg7 {[%clk 0:00:04]} 38. Ne8+ {[%clk 0:00:16]}  Kh6 {[%clk 0:00:05]} 39. Nf6 {[%clk 0:00:13]}  Qg3 {[%clk 0:00:01]} 40. Qxg3 {[%clk 0:00:09]}  hxg3 {[%clk 0:00:02]} 41. Ng4+ {[%clk 0:00:08]}  Kg5 {[%clk 0:00:02]} 42. Nxe5 {[%clk 0:00:08]}  Re3 {[%clk 0:00:02]} 43. Nf3+ {[%clk 0:00:08]}  Kf4 {[%clk 0:00:03]} 44. Rb1 {[%clk 0:00:07]}  Bxh3 {[%clk 0:00:02]} 45. gxh3 {[%clk 0:00:08]}  Rxf3 {[%clk 0:00:02]} 46. Kg2 {[%clk 0:00:08]}  Re3 {[%clk 0:00:02]} 47. Rb3 {[%clk 0:00:08]}  Re1 {[%clk 0:00:01]} 48. Rf3+ {[%clk 0:00:08]}  Kxe4 {[%clk 0:00:02]} 49. Rxf7 {[%clk 0:00:09]}  Ra1 {[%clk 0:00:01]} 50. Rf3 {[%clk 0:00:09]}  g5 {[%clk 0:00:01]} 51. Rxg3 {[%clk 0:00:09]}  Kf4 {[%clk 0:00:02]} 52. Rf2+ {[%clk 0:00:08]}  Ke4 {[%clk 0:00:02]} 53. Rxg5 {[%clk 0:00:09]} 1-0


[Site "https://www.chess.com"]

[Event "Titled Tuesday Blitz March 01 Early 2022"]
[White "Moskalenko, Alexander"]
[Black "Alavi, Sayed Javad"]
[WhiteFideId "4155351"]
[BlackFideId "12500607"]
[WhiteElo "2515"]
[BlackElo "2475"]
[Result "1/2-1/2"]
[Round "04"]
[TimeControl "180+1"]
[Date "2022.03.01"]
[WhiteClock "0:01:23"]
[BlackClock "0:00:27"]

1. d4 {[%clk 0:03:00]}  Nf6 {[%clk 0:02:58]} 2. Nf3 {[%clk 0:03:01]}  d5 {[%clk 0:02:54]} 3. Bf4 {[%clk 0:02:57]}  e6 {[%clk 0:02:54]} 4. e3 {[%clk 0:02:56]}  Bd6 {[%clk 0:02:53]} 5. Bg3 {[%clk 0:02:56]}  O-O {[%clk 0:02:51]} 6. c4 {[%clk 0:02:56]}  Ne4 {[%clk 0:02:21]} 7. Nc3 {[%clk 0:02:52]}  Nxg3 {[%clk 0:01:47]} 8. hxg3 {[%clk 0:02:53]}  c6 {[%clk 0:01:36]} 9. Qc2 {[%clk 0:02:51]}  g6 {[%clk 0:01:33]} 10. O-O-O {[%clk 0:02:48]}  f5 {[%clk 0:01:26]} 11. Ne5 {[%clk 0:02:44]}  Nd7 {[%clk 0:01:24]} 12. Nxd7 {[%clk 0:02:43]}  Bxd7 {[%clk 0:01:23]} 13. f4 {[%clk 0:02:44]}  b5 {[%clk 0:01:17]} 14. c5 {[%clk 0:02:43]}  Bc7 {[%clk 0:01:17]} 15. g4 {[%clk 0:02:43]}  Ba5 {[%clk 0:01:03]} 16. g5 {[%clk 0:02:38]}  Bxc3 {[%clk 0:00:57]} 17. Qxc3 {[%clk 0:02:38]}  a5 {[%clk 0:00:58]} 18. Qe1 {[%clk 0:02:34]}  Bc8 {[%clk 0:00:55]} 19. Rh6 {[%clk 0:02:30]}  Ra7 {[%clk 0:00:54]} 20. Bd3 {[%clk 0:02:30]}  b4 {[%clk 0:00:45]} 21. Qe2 {[%clk 0:02:30]}  a4 {[%clk 0:00:36]} 22. Rdh1 {[%clk 0:02:22]}  Rff7 {[%clk 0:00:35]} 23. Kd1 {[%clk 0:02:12]}  Qa5 {[%clk 0:00:34]} 24. Qd2 {[%clk 0:01:56]}  Ba6 {[%clk 0:00:33]} 25. Ke2 {[%clk 0:01:57]}  Bxd3+ {[%clk 0:00:33]} 26. Qxd3 {[%clk 0:01:58]}  Qa6 {[%clk 0:00:32]} 27. Qxa6 {[%clk 0:01:54]}  Rxa6 {[%clk 0:00:33]} 28. g3 {[%clk 0:01:51]}  Raa7 {[%clk 0:00:33]} 29. Kd2 {[%clk 0:01:51]}  Rfb7 {[%clk 0:00:32]} 30. Ra1 {[%clk 0:01:42]}  a3 {[%clk 0:00:31]} 31. b3 {[%clk 0:01:18]}  Kg7 {[%clk 0:00:29]} 32. Rah1 {[%clk 0:01:17]}  Kg8 {[%clk 0:00:30]} 33. g4 {[%clk 0:01:18]}  Re7 {[%clk 0:00:29]} 34. Ke2 {[%clk 0:01:18]}  Rf7 {[%clk 0:00:29]} 35. Kf3 {[%clk 0:01:19]}  Rfe7 {[%clk 0:00:29]} 36. R6h2 {[%clk 0:01:20]}  Rf7 {[%clk 0:00:29]} 37. Ke2 {[%clk 0:01:20]}  Rfe7 {[%clk 0:00:29]} 38. Rg1 {[%clk 0:01:21]}  Rf7 {[%clk 0:00:29]} 39. Kd2 {[%clk 0:01:21]}  Rfe7 {[%clk 0:00:30]} 40. gxf5 {[%clk 0:01:22]}  exf5 {[%clk 0:00:27]} 41. Rh3 {[%clk 0:01:22]}  Rf7 {[%clk 0:00:27]} 42. Rgh1 {[%clk 0:01:23]}  Rfe7 {[%clk 0:00:27]} 43. Rg3 {[%clk 0:01:22]}  Kh8 {[%clk 0:00:27]} 44. Rgh3 {[%clk 0:01:23]}  Kg8 {[%clk 0:00:27]} 45. Rh6 {[%clk 0:01:23]}  Rf7 {[%clk 0:00:27]} 46. R1h3 {[%clk 0:01:24]}  Rfe7 {[%clk 0:00:27]} 47. Ke2 {[%clk 0:01:24]}  Rf7 {[%clk 0:00:27]} 48. Kf2 {[%clk 0:01:25]}  Rae7 {[%clk 0:00:27]} 49. Rh1 {[%clk 0:01:25]}  Re4 {[%clk 0:00:27]} 50. R1h3 {[%clk 0:01:25]}  Rfe7 {[%clk 0:00:26]} 51. R6h4 {[%clk 0:01:24]}  Rf7 {[%clk 0:00:26]} 52. Rh6 {[%clk 0:01:24]}  Rfe7 {[%clk 0:00:27]} 53. R6h4 {[%clk 0:01:21]}  Rf7 {[%clk 0:00:24]} 54. Ke2 {[%clk 0:01:22]}  Rfe7 {[%clk 0:00:24]} 55. Kd3 {[%clk 0:01:22]}  Rf7 {[%clk 0:00:25]} 56. Rg3 {[%clk 0:01:20]}  Rfe7 {[%clk 0:00:25]} 57. Rh2 {[%clk 0:01:19]}  Rf7 {[%clk 0:00:25]} 58. Rgh3 {[%clk 0:01:19]}  Rfe7 {[%clk 0:00:25]} 59. Re2 {[%clk 0:01:19]}  Rf7 {[%clk 0:00:25]} 60. Rh4 {[%clk 0:01:19]}  Rfe7 {[%clk 0:00:25]} 61. Rh6 {[%clk 0:01:19]}  Rf7 {[%clk 0:00:25]} 62. Reh2 {[%clk 0:01:20]}  Rfe7 {[%clk 0:00:26]} 63. R2h3 {[%clk 0:01:21]}  Rf7 {[%clk 0:00:26]} 64. Kd2 {[%clk 0:01:21]}  Rfe7 {[%clk 0:00:26]} 65. Kd3 {[%clk 0:01:22]}  Rf7 {[%clk 0:00:27]} 66. Kd2 {[%clk 0:01:23]}  Rfe7 {[%clk 0:00:27]} 67. Kd3 {[%clk 0:01:23]} 1/2-1/2


[Site "https://www.chess.com"]

[Event "Titled Tuesday Blitz March 01 Early 2022"]
[White "Nasyrova, Ekaterina"]
[Black "Vantika, Agrawal"]
[WhiteFideId "44157797"]
[BlackFideId "25050389"]
[WhiteElo "2068"]
[BlackElo "2075"]
[Result "1-0"]
[Round "04"]
[TimeControl "180+1"]
[Date "2022.03.01"]
[WhiteClock "0:00:03"]
[BlackClock "0:00:01"]

1. d4 {[%clk 0:02:59]}  Nf6 {[%clk 0:02:59]} 2. c4 {[%clk 0:02:59]}  g6 {[%clk 0:02:58]} 3. g3 {[%clk 0:02:59]}  Bg7 {[%clk 0:02:58]} 4. Bg2 {[%clk 0:03:00]}  O-O {[%clk 0:02:59]} 5. Nf3 {[%clk 0:03:00]}  d6 {[%clk 0:02:59]} 6. Nc3 {[%clk 0:03:00]}  Nbd7 {[%clk 0:02:58]} 7. O-O {[%clk 0:03:01]}  e5 {[%clk 0:02:58]} 8. e4 {[%clk 0:03:01]}  c6 {[%clk 0:02:57]} 9. Re1 {[%clk 0:03:00]}  Qa5 {[%clk 0:02:55]} 10. d5 {[%clk 0:02:43]}  cxd5 {[%clk 0:02:49]} 11. cxd5 {[%clk 0:02:44]}  b5 {[%clk 0:02:30]} 12. Bd2 {[%clk 0:02:41]}  b4 {[%clk 0:02:29]} 13. Na4 {[%clk 0:02:38]}  Nb6 {[%clk 0:02:19]} 14. Nxb6 {[%clk 0:02:27]}  Qxb6 {[%clk 0:02:20]} 15. a3 {[%clk 0:02:27]}  bxa3 {[%clk 0:02:01]} 16. bxa3 {[%clk 0:02:27]}  Ba6 {[%clk 0:01:51]} 17. h3 {[%clk 0:02:23]}  Rfc8 {[%clk 0:01:46]} 18. Rb1 {[%clk 0:02:14]}  Qc7 {[%clk 0:01:43]} 19. Rc1 {[%clk 0:02:11]}  Qd7 {[%clk 0:01:41]} 20. Bb4 {[%clk 0:02:07]}  Bb5 {[%clk 0:01:32]} 21. Ba5 {[%clk 0:01:40]}  h5 {[%clk 0:01:30]} 22. Qd2 {[%clk 0:01:30]}  Rxc1 {[%clk 0:01:23]} 23. Qxc1 {[%clk 0:01:25]}  Rc8 {[%clk 0:01:22]} 24. Qb2 {[%clk 0:01:25]}  Bh6 {[%clk 0:01:17]} 25. Qb4 {[%clk 0:01:17]}  Rc4 {[%clk 0:01:15]} 26. Qb1 {[%clk 0:01:18]}  Rc8 {[%clk 0:00:58]} 27. Nd2 {[%clk 0:01:06]}  h4 {[%clk 0:00:54]} 28. Kh2 {[%clk 0:00:59]}  hxg3+ {[%clk 0:00:52]} 29. fxg3 {[%clk 0:01:00]}  Nh5 {[%clk 0:00:39]} 30. Bf3 {[%clk 0:00:42]}  Nf6 {[%clk 0:00:29]} 31. Nf1 {[%clk 0:00:29]}  Ba4 {[%clk 0:00:22]} 32. Ne3 {[%clk 0:00:27]}  Rc5 {[%clk 0:00:16]} 33. Bb4 {[%clk 0:00:25]}  Rb5 {[%clk 0:00:14]} 34. Qd3 {[%clk 0:00:23]}  a5 {[%clk 0:00:14]} 35. Bc3 {[%clk 0:00:23]}  Kg7 {[%clk 0:00:08]} 36. Nc4 {[%clk 0:00:20]}  Rc5 {[%clk 0:00:04]} 37. Bxa5 {[%clk 0:00:15]}  Bb5 {[%clk 0:00:02]} 38. Nxe5 {[%clk 0:00:03]}  dxe5 {[%clk 0:00:03]} 39. Qb3 {[%clk 0:00:02]}  Bc4 {[%clk 0:00:03]} 40. Qc3 {[%clk 0:00:02]}  Rc8 {[%clk 0:00:03]} 41. Qxe5 {[%clk 0:00:02]}  Bb5 {[%clk 0:00:02]} 42. Bb4 {[%clk 0:00:02]}  Rc4 {[%clk 0:00:02]} 43. Bc3 {[%clk 0:00:02]}  Rxc3 {[%clk 0:00:02]} 44. Qxc3 {[%clk 0:00:02]}  Bg5 {[%clk 0:00:01]} 45. Qd4 {[%clk 0:00:02]}  Bh6 {[%clk 0:00:01]} 46. e5 {[%clk 0:00:03]} 1-0


[Site "https://www.chess.com"]